bitfinex/quotes_BTCUSD_20241202
["timestamp","ask_amount","ask_price","bid_price","bid_amount"]
[1733146361223,0.0008635,95831.0,95830.0,0.45624721]
[1733146361433,0.0008635,95831.0,95830.0,0.24754521]
[1733146361655,0.0008635,95831.0,95830.0,0.33404123]
[1733146362316,0.0008635,95831.0,95830.0,0.34227801]
[1733146362534,0.2018051,95850.0,95830.0,0.34227801]
[1733146362796,0.208671,95845.0,95831.0,0.10469187]
[1733146363251,0.15,95866.0,95831.0,0.10469187]
[1733146363252,0.208661,95849.0,95837.0,0.208687]
[1733146363493,0.208661,95849.0,95838.0,0.10469187]
[1733146363732,0.208661,95849.0,95838.0,0.10284521]
[1733146363733,0.208663,95848.0,95838.0,0.10284521]
[1733146365091,0.208663,95848.0,95838.0,0.11069187]
[1733146365339,0.208663,95848.0,95838.0,0.10469187]
[1733146365532,0.208663,95848.0,95838.0,0.10784521]
[1733146365822,0.208663,95848.0,95838.0,0.11084521]
[1733146366036,0.208663,95848.0,95838.0,0.10584521]
[1733146366248,0.417326,95848.0,95838.0,0.10584521]
[1733146366466,0.417326,95848.0,95838.0,0.10884521]
[1733146366925,0.417326,95848.0,95838.0,0.10584521]
[1733146367181,0.208663,95848.0,95838.0,0.10769187]
[1733146367413,0.208658,95851.0,95839.0,0.208683]
[1733146367666,0.208666,95847.0,95839.0,0.31152821]
[1733146368402,0.208666,95847.0,95839.0,0.10284521]
[1733146368850,0.208666,95847.0,95839.0,0.10684521]
[1733146370409,0.208666,95847.0,95839.0,0.10584521]
[1733146370823,0.208666,95847.0,95839.0,0.10884521]
[1733146372658,0.208673,95844.0,95839.0,0.10884521]
[1733146372937,0.208666,95847.0,95839.0,0.006]
[1733146373129,0.417332,95847.0,95839.0,0.10884521]
[1733146373345,0.208666,95847.0,95839.0,0.10884521]
[1733146373611,0.208666,95847.0,95839.0,0.10584521]
[1733146373824,0.208666,95847.0,95839.0,0.10784521]
[1733146374052,0.208681,95840.0,95839.0,0.004]
[1733146374571,0.208681,95840.0,95839.0,0.007]
[1733146375253,0.2005442,95840.0,95839.0,0.004]
[1733146375473,0.2005442,95840.0,95839.0,0.007]
[1733146375686,0.2005442,95840.0,95839.0,0.01]
[1733146376793,0.4092252,95840.0,95830.0,0.14578361]
[1733146377033,0.0008632,95848.0,95839.0,0.002]
[1733146377262,0.208681,95840.0,95839.0,0.002]
[1733146377938,0.15,95843.0,95821.0,0.0766]
[1733146378614,0.15,95843.0,95819.0,0.04959411]
[1733146378615,0.208714,95825.0,95819.0,0.00059411]
[1733146378855,0.208724,95820.0,95819.0,0.00059411]
[1733146379074,0.358724,95820.0,95819.0,0.00059411]
[1733146379764,0.208715,95824.0,95819.0,0.00059411]
[1733146379984,0.2,95855.0,95819.0,0.00059411]
[1733146379985,0.208689,95837.0,95820.0,0.08]
[1733146380200,0.0008632,95848.0,95821.0,0.02502082]
[1733146380443,0.0008632,95848.0,95822.0,0.18284521]
[1733146380718,0.0008632,95848.0,95823.0,0.00184679]
[1733146380932,0.208676,95842.0,95828.0,0.208705]
[1733146381157,0.0008632,95848.0,95829.0,0.104692]
[1733146381382,0.208687,95838.0,95829.0,0.104692]
[1733146381619,0.20868,95841.0,95829.0,0.104692]
[1733146381852,0.0008632,95848.0,95829.0,0.104692]
[1733146382064,0.208689,95837.0,95829.0,0.313396]
[1733146382305,0.208689,95837.0,95829.0,0.10284521]
[1733146382750,0.208681,95840.0,95829.0,0.31154921]
[1733146383184,0.208673,95844.0,95830.0,0.417404]
[1733146383405,0.0008632,95848.0,95831.0,0.10284521]
[1733146383637,0.208684,95839.0,95830.0,0.10284521]
[1733146384312,0.20868,95841.0,95830.0,0.10384521]
[1733146384558,0.208693,95835.0,95830.0,0.10384521]
[1733146384766,0.208693,95835.0,95830.0,0.10284521]
[1733146384980,0.208693,95835.0,95830.0,0.10684521]
[1733146385431,0.208693,95835.0,95830.0,0.10284521]
[1733146385645,0.208693,95835.0,95830.0,0.10684521]
[1733146385883,0.208681,95840.0,95830.0,0.10684521]
[1733146386104,0.208676,95843.0,95831.0,0.2087]
[1733146386330,0.208683,95840.0,95830.0,0.10284521]
[1733146386630,0.208683,95840.0,95830.0,0.10969203]
[1733146386848,0.208683,95840.0,95830.0,0.11084521]
[1733146387068,0.208666,95847.0,95830.0,0.10284521]
[1733146387299,0.208682,95840.0,95831.0,0.003]
[1733146387528,0.208682,95840.0,95831.0,0.005]
[1733146387776,0.208682,95840.0,95831.0,0.003]
[1733146388020,0.0008632,95848.0,95834.0,0.1219]
[1733146388238,0.0008632,95848.0,95845.0,0.417338]
[1733146388487,0.0008632,95848.0,95847.0,0.284565]
[1733146388713,0.0008632,95848.0,95847.0,0.43341021]
[1733146389601,0.0008632,95848.0,95847.0,0.43541021]
[1733146390382,0.0008632,95848.0,95847.0,0.52068603]
[1733146390613,0.0008632,95848.0,95847.0,0.51868603]
[1733146390875,0.0008632,95848.0,95847.0,0.52168603]
[1733146391122,0.0008632,95848.0,95847.0,0.43641021]
[1733146392102,0.0008632,95848.0,95847.0,0.23074521]
[1733146392801,0.0008632,95848.0,95847.0,0.22774521]
[1733146393514,0.0008632,95848.0,95847.0,0.23674521]
[1733146393755,0.0008632,95848.0,95847.0,0.32173438]
[1733146393986,0.0008632,95848.0,95847.0,0.32873438]
[1733146397464,0.0008632,95848.0,95847.0,0.24074521]
[1733146402500,0.0008632,95848.0,95847.0,0.1379]
[1733146402724,0.0008632,95848.0,95847.0,0.016]
[1733146405359,0.0008632,95848.0,95847.0,0.009]
[1733146405589,0.0008632,95848.0,95847.0,0.014]
[1733146406079,0.208697,95833.0,95825.0,0.0454]
[1733146406315,0.208697,95833.0,95823.0,0.076]
[1733146406581,0.417394,95833.0,95823.0,0.076]
[1733146406832,0.417394,95833.0,95816.0,0.00184706]
[1733146407071,0.417394,95833.0,95813.0,0.076]
[1733146407799,0.417394,95833.0,95829.0,0.0098628]
[1733146408267,0.2087,95831.0,95829.0,0.0098628]
[1733146408497,0.2087,95831.0,95829.0,0.0008628]
[1733146408498,0.31154521,95831.0,95829.0,0.0008628]
[1733146409230,0.208702,95830.0,95810.0,0.06797051]
[1733146409710,0.208724,95820.0,95810.0,0.06797051]
[1733146409947,0.208714,95825.0,95810.0,0.06797051]
[1733146410189,0.208723,95821.0,95810.0,0.06797051]
[1733146410651,0.10343924,95831.0,95811.0,0.208744]
[1733146410880,0.208721,95822.0,95810.0,0.06797051]
[1733146411125,0.208721,95822.0,95810.0,0.06897051]
[1733146411356,0.208716,95824.0,95810.0,0.06797051]
[1733146411612,0.208726,95820.0,95810.0,0.06797051]
[1733146411853,0.208705,95829.0,95810.0,0.07297051]
[1733146412101,0.20873,95818.0,95810.0,0.07497051]
[1733146412591,0.208717,95824.0,95810.0,0.005]
[1733146412881,0.208718,95823.0,95810.0,0.004]
[1733146413115,0.208733,95817.0,95810.0,0.004]
[1733146413587,0.208733,95817.0,95810.0,0.005]
[1733146413820,0.208733,95817.0,95810.0,0.008]
[1733146414052,0.208733,95816.0,95810.0,0.005]
[1733146414293,0.208705,95829.0,95810.0,0.005]
[1733146414545,0.15,95830.0,95810.0,0.012]
[1733146414796,0.15,95828.0,95810.0,0.220746]
[1733146415036,0.15,95828.0,95811.0,0.0455]
[1733146415277,0.15,95828.0,95816.0,0.208731]
[1733146416252,0.15,95826.0,95816.0,0.208731]
[1733146416729,0.15,95826.0,95816.0,0.210731]
[1733146416962,0.15,95826.0,95816.0,0.212731]
[1733146417251,0.00059403,95831.0,95816.0,0.002]
[1733146417501,0.00059403,95831.0,95818.0,0.208728]
[1733146417716,0.208702,95830.0,95816.0,0.004]
[1733146417957,0.208702,95830.0,95816.0,0.10684521]
[1733146418176,0.208705,95829.0,95817.0,0.208731]
[1733146418358,0.208714,95825.0,95816.0,0.10870801]
[1733146419008,0.208714,95825.0,95816.0,0.10370801]
[1733146419216,0.208714,95825.0,95816.0,0.10570801]
[1733146419652,0.208714,95825.0,95816.0,0.0008628]
[1733146419865,0.208714,95825.0,95816.0,0.0038628]
[1733146420095,0.208723,95821.0,95816.0,0.0068628]
[1733146420546,0.00059403,95831.0,95816.0,0.0068628]
[1733146420547,0.208716,95824.0,95816.0,0.0068628]
[1733146420812,0.208718,95823.0,95816.0,0.0068628]
[1733146421063,0.208727,95819.0,95816.0,0.0068628]
[1733146421295,0.208718,95823.0,95816.0,0.0038628]
[1733146421713,0.208718,95823.0,95816.0,0.0078628]
[1733146422224,0.208718,95823.0,95816.0,0.0038628]
[1733146422432,0.208727,95819.0,95816.0,0.0038628]
[1733146422657,0.208731,95817.0,95816.0,0.0078628]
[1733146422892,0.208731,95817.0,95816.0,0.0048628]
[1733146423110,0.208731,95817.0,95816.0,0.0098628]
[1733146423351,0.208731,95817.0,95816.0,0.0048628]
[1733146423807,0.208731,95817.0,95816.0,0.0108628]
[1733146424020,0.208731,95817.0,95816.0,0.0048628]
[1733146424240,0.208731,95817.0,95816.0,0.0118628]
[1733146424461,0.208731,95817.0,95816.0,0.0078628]
[1733146424697,0.208731,95817.0,95816.0,0.0128628]
[1733146425162,0.208731,95817.0,95816.0,0.0078628]
[1733146425639,0.208731,95817.0,95816.0,0.0128628]
[1733146428560,0.208731,95817.0,95816.0,0.0078628]
[1733146428813,0.208731,95817.0,95816.0,0.0108628]
[1733146429025,0.208731,95817.0,95816.0,0.0038628]
[1733146429026,0.358731,95817.0,95816.0,0.0038628]
[1733146429268,0.358731,95817.0,95816.0,0.0028628]
[1733146429899,0.46157621,95817.0,95816.0,0.0028628]
[1733146430575,0.49907621,95817.0,95816.0,0.0028628]
[1733146430805,0.70567621,95817.0,95816.0,0.0058628]
[1733146432189,0.90567621,95817.0,95816.0,0.0058628]
[1733146433066,0.90567621,95817.0,95816.0,0.0038628]
[1733146434425,0.46157621,95817.0,95816.0,0.0008628]
[1733146434865,0.208731,95817.0,95816.0,0.0008628]
[1733146436266,0.358731,95817.0,95816.0,0.0008628]
[1733146436754,0.15,95817.0,95816.0,0.0008628]
[1733146436966,0.001726,95823.0,95816.0,0.0835628]
[1733146437180,0.001726,95823.0,95817.0,0.0453]
[1733146438342,0.001726,95823.0,95816.0,0.0835628]
[1733146438343,0.208728,95819.0,95816.0,0.0835628]
[1733146438554,0.417456,95819.0,95816.0,0.0008628]
[1733146438796,0.417456,95819.0,95817.0,0.003]
[1733146438797,0.25284521,95818.0,95817.0,0.003]
[1733146440135,0.358731,95817.0,95816.0,0.0008628]
[1733146442680,0.15,95817.0,95816.0,0.0008628]
[1733146442924,0.210444,95823.0,95816.0,0.0797628]
[1733146442925,0.15,95821.0,95816.0,0.0797628]
[1733146443139,0.208729,95818.0,95816.0,0.0797628]
[1733146444255,0.208724,95820.0,95816.0,0.0797628]
[1733146444471,0.001726,95821.0,95816.0,0.0797628]
[1733146444929,0.001726,95821.0,95816.0,0.0807628]
[1733146445142,0.001726,95821.0,95817.0,0.208731]
[1733146445353,0.001726,95821.0,95816.0,0.0797628]
[1733146446046,0.001726,95821.0,95816.0,0.0817628]
[1733146447585,0.001726,95821.0,95816.0,0.0837628]
[1733146447808,0.208724,95820.0,95816.0,0.0837628]
[1733146448036,0.208727,95819.0,95816.0,0.0837628]
[1733146448482,0.208731,95817.0,95816.0,0.0048628]
[1733146448728,0.358731,95817.0,95816.0,0.0008628]
[1733146449180,0.358731,95817.0,95816.0,0.0028628]
[1733146449435,0.15,95817.0,95816.0,0.0008628]
[1733146449640,0.001726,95821.0,95816.0,0.0008628]
[1733146449897,0.41745,95820.0,95816.0,0.0008628]
[1733146450108,0.41745,95820.0,95816.0,0.0038628]
[1733146450541,0.41745,95820.0,95816.0,0.0008628]
[1733146451119,0.41745,95820.0,95816.0,0.0028628]
[1733146451543,0.41745,95820.0,95816.0,0.0008628]
[1733146451751,0.41745,95820.0,95816.0,0.0038628]
[1733146451990,0.41745,95820.0,95816.0,0.0018628]
[1733146455196,0.41468434,95820.0,95816.0,0.0018628]
[1733146455410,0.001726,95821.0,95817.0,0.1302]
[1733146456532,0.208725,95820.0,95817.0,0.1302]
[1733146456744,0.208725,95820.0,95817.0,0.1312]
[1733146457396,0.001726,95821.0,95817.0,0.1302]
[1733146457824,0.001726,95821.0,95817.0,0.1312]
[1733146458956,0.208724,95820.0,95817.0,0.1312]
[1733146459196,0.208724,95820.0,95817.0,0.1302]
[1733146459640,0.208724,95820.0,95817.0,0.1312]
[1733146460105,0.417449,95820.0,95817.0,0.1302]
[1733146460346,0.208724,95820.0,95817.0,0.1302]
[1733146460554,0.208724,95820.0,95817.0,0.1312]
[1733146460762,0.417449,95820.0,95817.0,0.1312]
[1733146463159,0.21045,95821.0,95817.0,0.1312]
[1733146463634,0.001726,95821.0,95817.0,0.1312]
[1733146463873,0.208725,95820.0,95817.0,0.1312]
[1733146464093,0.41745,95820.0,95817.0,0.1302]
[1733146464562,0.41745,95820.0,95817.0,0.1312]
[1733146465626,0.41745,95820.0,95817.0,0.1302]
[1733146466106,0.41745,95820.0,95817.0,0.1312]
[1733146468071,0.41745,95820.0,95817.0,0.132926]
[1733146469699,0.208725,95820.0,95817.0,0.132926]
[1733146469958,0.41745,95820.0,95817.0,0.132926]
[1733146470249,0.41745,95820.0,95817.0,0.083626]
[1733146476509,0.208729,95818.0,95817.0,0.002726]
[1733146476714,0.46157421,95818.0,95817.0,0.002726]
[1733146478434,0.46157421,95818.0,95817.0,0.001726]
[1733146478899,0.358729,95818.0,95817.0,0.002726]
[1733146479315,0.358729,95818.0,95817.0,0.001726]
[1733146479316,0.208729,95818.0,95817.0,0.001726]
[1733146480466,0.208729,95818.0,95817.0,0.002726]
[1733146481508,0.208729,95818.0,95817.0,0.004726]
[1733146481754,0.209588,95820.0,95817.0,0.003726]
[1733146481979,0.000863,95820.0,95817.0,0.003726]
[1733146482190,0.208726,95819.0,95817.0,0.003726]
[1733146482400,0.208726,95819.0,95817.0,0.007726]
[1733146482612,0.208726,95819.0,95817.0,0.005726]
[1733146482837,0.208726,95819.0,95817.0,0.009726]
[1733146483348,0.208726,95819.0,95817.0,0.005726]
[1733146484258,0.000863,95820.0,95817.0,0.010726]
[1733146484484,0.208726,95819.0,95817.0,0.010726]
[1733146485329,0.208726,95819.0,95817.0,0.006726]
[1733146485543,0.208726,95819.0,95817.0,0.010726]
[1733146486170,0.208726,95819.0,95817.0,0.006726]
[1733146486854,0.208726,95819.0,95817.0,0.010726]
[1733146488455,0.000863,95820.0,95817.0,0.010726]
[1733146489337,0.000863,95820.0,95817.0,0.006726]
[1733146489606,0.033274,95817.0,95816.0,0.0819628]
[1733146490901,0.033274,95817.0,95816.0,0.0879628]
[1733146492441,0.033274,95817.0,95816.0,0.0929628]
[1733146501753,0.033274,95817.0,95816.0,0.0118628]
[1733146501970,0.28611921,95817.0,95816.0,0.0118628]
[1733146502974,0.30061921,95817.0,95816.0,0.0118628]
[1733146503184,0.64142682,95817.0,95816.0,0.0058628]
[1733146503404,0.70361921,95817.0,95816.0,0.0058628]
[1733146503688,0.72661921,95817.0,95816.0,0.0058628]
[1733146504161,1.01487835,95817.0,95816.0,0.0058628]
[1733146504388,0.73108271,95817.0,95816.0,0.0008628]
[1733146504599,0.73608271,95817.0,95816.0,0.0018628]
[1733146504832,0.73108271,95817.0,95816.0,8e-07]
[1733146505479,0.73308271,95817.0,95816.0,8e-07]
[1733146506374,0.9744257,95817.0,95816.0,8e-07]
[1733146506604,0.74008271,95817.0,95816.0,8e-07]
[1733146509027,0.92743513,95817.0,95816.0,8e-07]
[1733146509234,0.88056106,95817.0,95816.0,8e-07]
[1733146509440,0.74008271,95817.0,95816.0,8e-07]
[1733146509664,0.88055798,95817.0,95816.0,8e-07]
[1733146510146,0.75641912,95817.0,95816.0,8e-07]
[1733146510393,0.94377154,95817.0,95816.0,8e-07]
[1733146510595,0.758744,95811.0,95810.0,8e-07]
[1733146510831,0.88458921,95811.0,95810.0,8e-07]
[1733146511034,0.97822033,95811.0,95810.0,8e-07]
[1733146511244,0.88458921,95811.0,95810.0,8e-07]
[1733146511466,1.0250359,95811.0,95810.0,8e-07]
[1733146511672,0.208814,95779.0,95778.0,0.0773]
[1733146512981,0.20887333,95779.0,95778.0,0.0773]
[1733146513414,0.15,95774.0,95770.0,0.0816637]
[1733146513629,0.358831,95771.0,95770.0,0.0058637]
[1733146515339,0.358831,95771.0,95770.0,0.0098637]
[1733146515766,0.208821,95776.0,95771.0,0.0491]
[1733146516883,0.208829,95772.0,95771.0,0.0491]
[1733146517327,0.208829,95772.0,95771.0,0.129]
[1733146517806,0.208829,95772.0,95771.0,0.132]
[1733146518263,0.208829,95772.0,95771.0,0.133]
[1733146518668,0.208829,95772.0,95771.0,0.135]
[1733146519396,0.208829,95772.0,95771.0,0.131]
[1733146519874,0.208829,95772.0,95771.0,0.132]
[1733146520557,0.208829,95772.0,95771.0,0.13]
[1733146520776,0.208829,95772.0,95771.0,0.129]
[1733146520987,0.208829,95772.0,95771.0,0.13]
[1733146521205,0.209829,95772.0,95771.0,0.13]
[1733146521470,0.209829,95772.0,95771.0,0.129]
[1733146521687,0.209829,95772.0,95771.0,0.13]
[1733146522556,0.208829,95772.0,95771.0,0.13]
[1733146522794,0.209829,95772.0,95771.0,0.13]
[1733146523675,0.31267421,95772.0,95771.0,0.0809]
[1733146523884,0.46267421,95772.0,95771.0,0.001]
[1733146528369,0.46267421,95772.0,95771.0,0.0027272]
[1733146528821,0.66267421,95772.0,95771.0,2e-07]
[1733146529054,0.35,95769.0,95768.0,1e-07]
[1733146529315,0.2,95767.0,95766.0,0.6791161]
[1733146529501,0.47584521,95767.0,95766.0,0.6791161]
[1733146529724,0.47738606,95767.0,95766.0,0.6791161]
[1733146529951,0.47738606,95767.0,95766.0,0.5746961]
[1733146530391,0.67738606,95767.0,95766.0,0.5746961]
[1733146530624,0.67938606,95767.0,95766.0,0.5746961]
[1733146530859,0.67938606,95767.0,95766.0,0.5329281]
[1733146530860,0.67738606,95767.0,95766.0,0.5329281]
[1733146531716,0.68324334,95767.0,95766.0,0.5329281]
[1733146532205,0.69224334,95767.0,95766.0,0.5339281]
[1733146532673,0.69770249,95767.0,95766.0,0.5339281]
[1733146532900,0.26570249,95767.0,95766.0,0.5339281]
[1733146533127,0.25870249,95767.0,95766.0,0.5329281]
[1733146533620,0.01285728,95767.0,95766.0,0.5339281]
[1733146533846,0.01285728,95767.0,95766.0,0.6543281]
[1733146534069,0.00585728,95767.0,95766.0,0.6533281]
[1733146534297,0.00685728,95767.0,95766.0,0.6533281]
[1733146534798,0.01585728,95767.0,95766.0,0.6543281]
[1733146535030,0.01,95767.0,95766.0,0.6543281]
[1733146535719,0.01480985,95767.0,95766.0,0.6543281]
[1733146536403,0.00580985,95767.0,95766.0,0.6533281]
[1733146536632,0.208831,95771.0,95766.0,0.6533281]
[1733146536865,0.00880985,95767.0,95766.0,0.6618281]
[1733146537088,0.20882,95777.0,95768.0,0.1274]
[1733146537319,0.208827,95773.0,95768.0,0.1274]
[1733146537796,0.208835,95769.0,95768.0,0.1274]
[1733146538239,0.208835,95769.0,95768.0,0.0816]
[1733146538240,0.358835,95769.0,95768.0,0.0816]
[1733146538492,0.20884,95767.0,95766.0,0.5329281]
[1733146538722,0.35884,95767.0,95766.0,0.5329281]
[1733146538951,0.3646705,95767.0,95766.0,0.5329281]
[1733146539678,0.3646705,95767.0,95766.0,0.5339281]
[1733146540146,0.3666705,95767.0,95766.0,0.5346561]
[1733146540598,0.47037971,95767.0,95766.0,0.5346561]
[1733146541547,0.49177915,95767.0,95766.0,0.5346561]
[1733146544315,0.47037971,95767.0,95766.0,0.5346561]
[1733146547641,0.47037971,95767.0,95766.0,0.6577561]
[1733146547894,0.47037971,95767.0,95766.0,0.6097561]
[1733146548143,0.47037971,95767.0,95766.0,0.5346561]
[1733146549979,0.49113347,95767.0,95766.0,0.5346561]
[1733146554400,0.47037971,95767.0,95766.0,0.5346561]
[1733146557137,0.1586945,95767.0,95766.0,0.6604561]
[1733146557354,0.0086945,95767.0,95766.0,0.6604561]
[1733146558023,0.0066945,95767.0,95766.0,0.6604561]
[1733146558470,0.0086945,95767.0,95766.0,0.6604561]
[1733146558696,0.0066945,95767.0,95766.0,0.6604561]
[1733146559192,0.0066945,95767.0,95766.0,0.6634561]
[1733146559410,0.0066945,95767.0,95766.0,0.6664561]
[1733146564476,0.0066945,95767.0,95766.0,0.6634561]
[1733146564683,0.0066945,95767.0,95766.0,0.6654561]
[1733146564911,0.25953971,95767.0,95766.0,0.6624561]
[1733146565117,0.25953971,95767.0,95766.0,0.5346561]
[1733146565330,0.25953971,95767.0,95766.0,0.5366561]
[1733146565792,0.25953971,95767.0,95766.0,0.5346561]
[1733146566260,0.26253971,95767.0,95766.0,0.5346561]
[1733146566808,0.26153971,95767.0,95766.0,0.5346561]
[1733146567046,0.26253971,95767.0,95766.0,0.5346561]
[1733146568203,0.26153971,95767.0,95766.0,0.5346561]
[1733146568419,0.25953971,95767.0,95766.0,0.5346561]
[1733146568630,0.26053971,95767.0,95766.0,0.5346561]
[1733146568851,0.26453971,95767.0,95766.0,0.5346561]
[1733146569070,0.26353971,95767.0,95766.0,0.5346561]
[1733146569344,0.26153971,95767.0,95766.0,0.5346561]
[1733146569787,0.26653971,95767.0,95766.0,0.5346561]
[1733146570023,0.28769452,95767.0,95766.0,0.5346561]
[1733146572702,0.13769452,95767.0,95766.0,0.5346561]
[1733146572962,0.30264028,95776.0,95766.0,0.5346561]
[1733146572963,0.0206696,95776.0,95771.0,0.20883]
[1733146573298,0.0206696,95776.0,95766.0,0.6582561]
[1733146573299,5.933e-05,95779.0,95767.0,0.12544809]
[1733146573541,5.933e-05,95779.0,95770.0,0.208833]
[1733146573752,5.933e-05,95779.0,95771.0,0.0768]
[1733146573962,5.933e-05,95779.0,95768.0,0.208838]
[1733146573963,5.933e-05,95779.0,95772.0,0.0472]
[1733146574188,5.933e-05,95779.0,95774.0,0.208824]
[1733146574432,5.933e-05,95779.0,95776.0,0.0788]
[1733146574856,0.20887333,95779.0,95776.0,0.0788]
[1733146575339,0.21060133,95779.0,95776.0,0.0788]
[1733146575822,0.21060133,95779.0,95776.0,0.0838]
[1733146576033,0.21160133,95779.0,95776.0,0.0908]
[1733146576245,0.21060133,95779.0,95776.0,0.0788]
[1733146576452,0.21060133,95779.0,95776.0,0.0828]
[1733146577212,0.00178733,95779.0,95776.0,0.0828]
[1733146577668,0.00178733,95779.0,95776.0,0.0858]
[1733146578589,0.00178733,95779.0,95776.0,0.29462]
[1733146579559,0.00178733,95779.0,95777.0,0.1366749]
[1733146579797,0.0008636,95804.0,95779.0,0.208814]
[1733146580026,0.0008636,95804.0,95778.0,0.023]
[1733146580027,0.0008636,95804.0,95783.0,0.023]
[1733146580241,0.0008636,95804.0,95801.0,0.208765]
[1733146580481,0.0008636,95804.0,95802.0,0.1314]
[1733146580696,0.0008636,95804.0,95803.0,0.208761]
[1733146580941,0.0008636,95804.0,95803.0,0.288761]
[1733146581156,0.0008636,95804.0,95803.0,0.08]
[1733146581635,0.0038636,95804.0,95803.0,0.08]
[1733146581876,0.0008636,95804.0,95803.0,0.08]
[1733146582141,0.0018636,95804.0,95803.0,0.089]
[1733146582381,0.0018636,95804.0,95803.0,0.297761]
[1733146582597,0.0018636,95804.0,95803.0,0.303761]
[1733146583049,0.0008636,95804.0,95803.0,0.294761]
[1733146583261,0.0018636,95804.0,95803.0,0.094]
[1733146583956,0.00691911,95804.0,95803.0,0.094]
[1733146584196,0.0018636,95804.0,95803.0,0.302761]
[1733146584439,0.00691911,95804.0,95803.0,0.302761]
[1733146584662,0.0018636,95804.0,95803.0,0.40560621]
[1733146585340,0.0018636,95804.0,95803.0,0.094]
[1733146586552,0.0018636,95804.0,95803.0,0.014]
[1733146586768,0.00700792,95804.0,95803.0,0.014]
[1733146586975,0.0018636,95804.0,95803.0,0.014]
[1733146587189,0.00700792,95804.0,95803.0,0.014]
[1733146587429,0.0018636,95804.0,95803.0,0.008]
[1733146587649,0.0008636,95804.0,95795.0,0.0814]
[1733146587860,0.00600792,95804.0,95803.0,0.002]
[1733146588512,0.00600792,95804.0,95803.0,0.001]
[1733146588733,0.208776,95796.0,95795.0,0.0814]
[1733146588955,0.208773,95798.0,95795.0,0.0814]
[1733146589382,0.00514432,95797.0,95795.0,0.0814]
[1733146589852,0.0008636,95804.0,95795.0,0.0814]
[1733146590076,0.00514432,95796.0,95795.0,0.0814]
[1733146590312,0.0008636,95804.0,95795.0,0.0814]
[1733146590539,0.208761,95803.0,95795.0,0.0814]
[1733146590771,0.00514432,95803.0,95795.0,0.0814]
[1733146590988,0.00514432,95803.0,95801.0,0.0781]
[1733146591227,0.00514432,95803.0,95802.0,0.208763]
[1733146591462,0.0008636,95804.0,95802.0,0.21061044]
[1733146592471,0.001,95803.0,95802.0,0.21061044]
[1733146592559,0.0008636,95804.0,95802.0,0.21061044]
[1733146594328,0.0018636,95804.0,95802.0,0.015]
[1733146594801,0.208761,95803.0,95802.0,0.015]
[1733146595301,0.21390292,95803.0,95802.0,0.015]
[1733146595983,0.21390292,95803.0,95802.0,0.006]
[1733146596677,0.208783,95794.0,95792.0,0.0767]
[1733146597103,0.0051422,95793.0,95792.0,0.0767]
[1733146598437,0.0051422,95793.0,95792.0,0.0837]
[1733146600352,0.0051422,95793.0,95792.0,0.0807]
[1733146600571,0.0051422,95793.0,95792.0,0.0837]
[1733146601006,0.0051422,95793.0,95792.0,0.0767]
[1733146601220,0.0041422,95793.0,95792.0,0.0797]
[1733146601435,0.0041422,95793.0,95792.0,0.0787]
[1733146601644,0.208782,95794.0,95792.0,0.0787]
[1733146601858,0.0050451,95793.0,95792.0,0.0807]
[1733146602068,0.0050451,95793.0,95792.0,0.0787]
[1733146602510,0.0050451,95793.0,95792.0,0.0827]
[1733146602965,0.0050451,95793.0,95792.0,0.0807]
[1733146603195,0.0050451,95793.0,95792.0,0.0837]
[1733146603870,0.21049,95803.0,95792.0,0.0837]
[1733146604142,0.00502641,95793.0,95792.0,0.0837]
[1733146604352,0.208772,95799.0,95792.0,0.0837]
[1733146604574,0.00502641,95793.0,95792.0,0.0837]
[1733146604807,0.208781,95794.0,95792.0,0.0767]
[1733146605247,0.00502641,95793.0,95792.0,0.0767]
[1733146605835,0.00502641,95793.0,95792.0,0.0807]
[1733146606043,0.00502641,95793.0,95792.0,0.0767]
[1733146607116,0.00502641,95793.0,95792.0,0.0797]
[1733146607571,0.00502641,95793.0,95792.0,0.0827]
[1733146608049,0.00502641,95793.0,95792.0,0.0797]
[1733146608279,0.00502641,95793.0,95792.0,0.0837]
[1733146610339,0.001728,95803.0,95792.0,0.0837]
[1733146610526,0.208773,95798.0,95792.0,0.0837]
[1733146610781,0.21378941,95802.0,95792.0,0.0837]
[1733146611018,0.208773,95798.0,95792.0,0.0837]
[1733146611247,0.417546,95798.0,95792.0,0.0837]
[1733146611467,0.208773,95798.0,95792.0,0.0837]
[1733146611681,0.001728,95803.0,95792.0,0.0837]
[1733146611682,0.208776,95796.0,95792.0,0.0837]
[1733146612169,0.001728,95803.0,95792.0,0.0767]
[1733146612385,0.21380541,95795.0,95792.0,0.0777]
[1733146612609,0.21380541,95795.0,95792.0,0.0767]
[1733146613041,0.00502641,95795.0,95792.0,0.0767]
[1733146613479,0.20878,95795.0,95792.0,0.0767]
[1733146613722,0.00503455,95794.0,95792.0,0.0767]
[1733146613962,0.208773,95798.0,95792.0,0.0787]
[1733146614183,0.00503455,95793.0,95792.0,0.0827]
[1733146614405,0.208773,95798.0,95792.0,0.0807]
[1733146614615,0.208781,95794.0,95792.0,0.0877]
[1733146614826,0.00503455,95797.0,95792.0,0.0807]
[1733146615039,0.208773,95798.0,95792.0,0.0807]
[1733146615251,0.00503455,95796.0,95792.0,0.0857]
[1733146615466,0.00503455,95796.0,95792.0,0.0767]
[1733146615730,0.208773,95798.0,95792.0,0.0817]
[1733146615946,0.21381555,95795.0,95792.0,0.0817]
[1733146616162,0.208781,95795.0,95792.0,0.0767]
[1733146616411,0.00603455,95794.0,95792.0,0.0837]
[1733146616616,0.00603455,95794.0,95792.0,0.0877]
[1733146617061,0.00603455,95794.0,95792.0,0.0837]
[1733146617272,0.00603455,95794.0,95792.0,0.0877]
[1733146617488,0.00503455,95794.0,95792.0,0.0807]
[1733146617909,0.00503455,95794.0,95792.0,0.0857]
[1733146618115,0.00503455,95794.0,95792.0,0.0807]
[1733146618534,0.00603455,95794.0,95792.0,0.0837]
[1733146619004,0.00603455,95794.0,95792.0,0.0887]
[1733146619510,0.001,95794.0,95792.0,0.0887]
[1733146619730,0.208783,95793.0,95792.0,0.012]